fUSD/lending_fUSD_20260624
["ID","MTS","AMOUNT","RATE_DAILY","PERIOD"]
[426286470,1782245439000,-7927.77795718,0.00014848,2]
[426286469,1782245439000,-25000.0,0.00014847,3]
[426286460,1782245439000,-1000.0,0.00014821,2]
[426286463,1782245439000,-7927.77795718,0.00014834,2]
[426286473,1782245439000,-25000.0,0.00014856,3]
[426286465,1782245439000,-500.0,0.00014838,2]
[426286479,1782245439000,-25000.0,0.00014882,3]
[426286482,1782245439000,-500.0,0.00014899,2]
[426286480,1782245439000,-7927.77795718,0.00014887,2]
[426286472,1782245439000,-154.591535,0.0001485,2]
[426286477,1782245439000,-25000.0,0.00014874,3]
[426286476,1782245439000,-25000.0,0.00014865,3]
[426286489,1782245439000,-150.49757157,0.000149,2]
[426286483,1782245439000,-179.38868994,0.000149,2]
[426286484,1782245439000,-25000.0,0.000149,3]
[426286485,1782245439000,-10973.62170936,0.000149,2]
[426286481,1782245439000,-25000.0,0.00014891,3]
[426286491,1782245439000,-9251.77,0.00014979,2]
[426286478,1782245439000,-7927.77795718,0.00014874,2]
[426286464,1782245439000,-9251.77,0.00014837,2]
[426286441,1782245439000,-500.0,0.00013698,2]
[426286461,1782245439000,-7927.77795718,0.00014821,2]
[426286488,1782245439000,-601.12082227,0.000149,2]
[426286443,1782245439000,-200.0,0.00013699,2]
[426286446,1782245439000,-166.66,0.00013766,2]
[426286444,1782245439000,-742.19999892,0.00013744,2]
[426286445,1782245439000,-193.1,0.00013747,2]
[426286442,1782245439000,-379.35376222,0.00013698,2]
[426286458,1782245439000,-7927.77795718,0.00014808,2]
[426286448,1782245439000,-166.66,0.00014038,2]
[426286450,1782245439000,-222.97,0.00014111,2]
[426286449,1782245439000,-193.1,0.00014091,2]
[426286447,1782245439000,-250.0,0.00014,2]
[426286453,1782245439000,-1500.0,0.00014666,2]
[426286451,1782245439000,-166.66,0.00014311,2]
[426286454,1782245439000,-2500.0,0.00014721,2]
[426286457,1782245439000,-7927.77795718,0.00014795,2]
[426286452,1782245439000,-193.1,0.00014434,2]
[426286455,1782245439000,-193.1,0.00014778,2]
[426286456,1782245439000,-7927.77795725,0.00014782,2]
[426286459,1782245439000,-25000.0,0.00014821,3]
[426286468,1782245439000,-500.0,0.00014846,2]
[426286466,1782245439000,-25000.0,0.00014838,3]
[426286462,1782245439000,-25000.0,0.0001483,3]
[426286492,1782245439000,-150.0,0.00014985,2]
[426286467,1782245439000,-500.0,0.00014846,2]
[426286490,1782245439000,-292.05203898,0.00014908,2]
[426286522,1782245439000,-500.0,0.00014999,2]
[426286521,1782245439000,-500.0,0.00014999,2]
[426286518,1782245439000,-1000.0,0.00014999,2]
[426286517,1782245439000,-524.5239493,0.00014999,2]
[426286520,1782245439000,-500.0,0.00014999,2]
[426286523,1782245439000,-500.0,0.00014999,2]
[426286525,1782245439000,-500.0,0.00014999,2]
[426286524,1782245439000,-500.0,0.00014999,2]
[426286527,1782245439000,-500.0,0.00014999,2]
[426286531,1782245439000,-500.0,0.00014999,2]
[426286529,1782245439000,-500.0,0.00014999,2]
[426286532,1782245439000,-500.0,0.00014999,2]
[426286535,1782245439000,-500.0,0.00014999,2]
[426286530,1782245439000,-500.0,0.00014999,2]
[426286534,1782245439000,-500.0,0.00014999,2]
[426286533,1782245439000,-500.0,0.00014999,2]
[426286537,1782245439000,-500.0,0.00014999,2]
[426286536,1782245439000,-500.0,0.00014999,2]
[426286528,1782245439000,-500.0,0.00014999,2]
[426286540,1782245439000,-2185734.80934662,0.00015,2]
[426286539,1782245439000,-500.0,0.00014999,2]
[426286519,1782245439000,-500.0,0.00014999,2]
[426286516,1782245439000,-524.5,0.00014999,2]
[426286526,1782245439000,-500.0,0.00014999,2]
[426286510,1782245439000,-524.5,0.00014999,2]
[426286486,1782245439000,-229.96422363,0.000149,2]
[426286512,1782245439000,-524.5,0.00014999,2]
[426286493,1782245439000,-524.5,0.00014988,2]
[426286496,1782245439000,-524.5,0.00014999,2]
[426286497,1782245439000,-524.5,0.00014999,2]
[426286495,1782245439000,-121189.46279617,0.00014989,2]
[426286498,1782245439000,-524.5,0.00014999,2]
[426286499,1782245439000,-524.5,0.00014999,2]
[426286500,1782245439000,-524.5,0.00014999,2]
[426286502,1782245439000,-524.5,0.00014999,2]
[426286501,1782245439000,-524.5,0.00014999,2]
[426286494,1782245439000,-180.44629639,0.00014988,2]
[426286505,1782245439000,-524.5,0.00014999,2]
[426286503,1782245439000,-524.5,0.00014999,2]
[426286513,1782245439000,-524.5,0.00014999,2]
[426286514,1782245439000,-524.5,0.00014999,2]
[426286509,1782245439000,-524.5,0.00014999,2]
[426286508,1782245439000,-524.5,0.00014999,2]
[426286487,1782245439000,-7927.77795718,0.000149,2]
[426286511,1782245439000,-524.5,0.00014999,2]
[426286504,1782245439000,-524.5,0.00014999,2]
[426286506,1782245439000,-524.5,0.00014999,2]
[426286515,1782245439000,-524.5,0.00014999,2]
[426286507,1782245439000,-524.5,0.00014999,2]
[426286544,1782245440000,-21880.87355494,0.00015,2]
[426286543,1782245440000,-2164.48758691,0.00015,2]
[426286555,1782245442000,-6513.86976596,0.00015,2]
[426286554,1782245442000,-1266.840648,8.761e-05,2]
[426286560,1782245446000,-150.90789025,0.000149,2]
[426286562,1782245446000,-14416.35,0.00015,2]
[426286561,1782245446000,-187193.38326667,0.00015,2]
[426286568,1782245535000,297.9564082,8.032e-05,7]
[426286569,1782245536000,297.9564082,8.193e-05,7]
[426286570,1782245537000,297.9564082,8.434e-05,7]
[426286572,1782245538000,297.95640822,8.996e-05,7]
[426286571,1782245538000,297.9564082,8.675e-05,7]
[426286573,1782245630000,-216.39158367,8.033e-05,2]
[426286575,1782245683000,-279.78080109,8.033e-05,2]
[426286576,1782245737000,-150.0,8.18e-05,2]
[426286577,1782245791000,-150.0,8.486e-05,2]
[426286579,1782245844000,-500.0,8.938e-05,2]
[426286580,1782245898000,-636.40909179,8.938e-05,2]
[426286581,1782245951000,-500.0,8.937e-05,2]
[426286582,1782246005000,-560.1531136,8.232e-05,2]
[426286583,1782246058000,-500.0,8.936e-05,2]
[426286584,1782246111000,-3248.362546,8.891e-05,2]
[426286585,1782246290000,-527.19255652,8.23e-05,2]
[426286586,1782246318000,244.484649,0.0002,120]
[426286587,1782246343000,-500.0,8.584e-05,2]
[426286588,1782246397000,-2850.665372,8.753e-05,2]
[426286589,1782246450000,-500.0,8.798e-05,2]
[426286590,1782246504000,-594.51546887,8.798e-05,2]
[426286591,1782246557000,-150.0,8.868e-05,2]
[426286592,1782246611000,-495.14492063,8.861e-05,2]
[426286662,1782246632000,-308.86349464,9.052e-05,2]
[426286659,1782246632000,-174.96779304,9.052e-05,2]
[426286657,1782246632000,-500.0,8.939e-05,2]
[426286656,1782246632000,-1650.92291156,8.939e-05,2]
[426286654,1782246632000,-206.81044189,8.867e-05,2]
[426286655,1782246632000,-1440.71972038,8.868e-05,2]
[426286653,1782246632000,-173.7322129,8.867e-05,2]
[426286663,1782246632000,-500.0,9.052e-05,2]
[426286643,1782246632000,-282.31189696,8.867e-05,2]
[426286646,1782246632000,-326.2677871,8.867e-05,2]
[426286664,1782246632000,-103.41419402,9.052e-05,2]
[426286667,1782246632000,-500.0,9.052e-05,2]
[426286661,1782246632000,-257.99628065,9.052e-05,2]
[426286658,1782246632000,-154.28040092,8.939e-05,2]
[426286666,1782246632000,-596.57070203,9.052e-05,2]
[426286665,1782246632000,-396.58580598,9.052e-05,2]
[426286669,1782246632000,-1354.2304,9.57e-05,2]
[426286668,1782246632000,-500.0,9.052e-05,2]
[426286672,1782246632000,-388.36034006,9.841e-05,2]
[426286670,1782246632000,-4000.0,9.747e-05,2]
[426286671,1782246632000,-500.0,9.747e-05,2]
[426286674,1782246632000,-1117.69894956,9.937e-05,2]
[426286673,1782246632000,-1948.83708785,9.937e-05,2]
[426286660,1782246632000,-500.0,9.052e-05,2]
[426286678,1782246633000,-110.50816074,0.00010624,2]
[426286676,1782246633000,-117.80148378,9.937e-05,2]
[426286675,1782246633000,-300.0,9.937e-05,2]
[426286679,1782246633000,-672.09,0.00010624,2]
[426286677,1782246633000,-163.57035548,0.00010019,2]
[426286718,1782246638000,-356.5380858,0.00012408,2]
[426286717,1782246638000,-14215.41467785,0.00012408,2]
[426286715,1782246638000,-269.95,0.00012346,2]
[426286714,1782246638000,-3648.0,0.00012331,2]
[426286713,1782246638000,-6083.0,0.00012331,2]
[426286707,1782246638000,-193.1,0.00012063,2]
[426286716,1782246638000,-152.0,0.00012387,2]
[426286712,1782246638000,-171.4,0.00012328,2]
[426286711,1782246638000,-239.0,0.00012274,2]
[426286710,1782246638000,-314.0,0.00012255,2]
[426286709,1782246638000,-316.0,0.00012255,2]
[426286708,1782246638000,-166.66,0.00012168,2]
[426286706,1782246638000,-500.0,0.00012055,2]
[426286705,1782246638000,-166.66,0.00011917,2]
[426286704,1782246638000,-6471.47,0.00011835,2]
[426286699,1782246638000,-438.09902854,0.00011764,2]
[426286698,1782246638000,-292.85865192,0.00011764,2]
[426286702,1782246638000,-477.95,0.00011764,2]
[426286700,1782246638000,-592.7625,0.00011764,2]
[426286697,1782246638000,-166.00848883,0.00011764,2]
[426286696,1782246638000,-1954.25,0.00011745,2]
[426286694,1782246638000,-200.0,0.00011509,2]
[426286722,1782246638000,-150.0,0.00012508,2]
[426286703,1782246638000,-1317.43,0.00011764,2]
[426286695,1782246638000,-4502.57263718,0.00011745,2]
[426286693,1782246638000,-174.99287234,0.00011112,2]
[426286691,1782246638000,-868.32475081,0.00010624,2]
[426286692,1782246638000,-1611.29595686,0.00011035,2]
[426286701,1782246638000,-9999.99,0.00011764,2]
[426286721,1782246638000,-1500000.0,0.00012445,2]
[426286745,1782246638000,-200.0,0.00013699,2]
[426286719,1782246638000,-1650.92291155,0.00012408,2]
[426286720,1782246638000,-166.66,0.00012419,2]
[426286752,1782246638000,-175.51773334,0.0001402,2]
[426286751,1782246638000,-199.5,0.00013868,2]
[426286749,1782246638000,-227.333726,0.00013817,2]
[426286750,1782246638000,-790.01,0.00013821,2]
[426286746,1782246638000,-151.0,0.00013699,2]
[426286744,1782246638000,-356.5380858,0.00013516,2]
[426286747,1782246638000,-151.0,0.00013699,2]
[426286743,1782246638000,-151.0,0.00013425,2]
[426286742,1782246638000,-151.0,0.00013425,2]
[426286740,1782246638000,-356.5380858,0.00013239,2]
[426286736,1782246638000,-1229.0,0.00012945,2]
[426286739,1782246638000,-166.66,0.00013172,2]
[426286738,1782246638000,-356.5380858,0.00012962,2]
[426286748,1782246638000,-356.5380858,0.00013792,2]
[426286734,1782246638000,-1361.0,0.00012945,2]
[426286737,1782246638000,-160.0,0.00012954,2]
[426286726,1782246638000,-151.0,0.00012577,2]
[426286723,1782246638000,-224.16,0.00012545,2]
[426286724,1782246638000,-12751.91,0.00012545,2]
[426286727,1782246638000,-150.0,0.00012609,2]
[426286729,1782246638000,-356.5380858,0.00012685,2]
[426286725,1782246638000,-151.0,0.00012577,2]
[426286733,1782246638000,-166.66,0.00012921,2]
[426286731,1782246638000,-320.0,0.00012915,2]
[426286730,1782246638000,-167.22,0.0001272,2]
[426286728,1782246638000,-166.66,0.0001267,2]
[426286741,1782246638000,-588.53,0.000134,2]
[426286735,1782246638000,-383.0,0.00012945,2]
[426286732,1782246638000,-319.0,0.00012915,2]
[426286781,1782246639000,-1585.55559143,0.0001486,2]
[426286795,1782246639000,-500.0,0.0001489,2]
[426286784,1782246639000,-1000.0,0.00014864,2]
[426286785,1782246639000,-500.0,0.00014868,2]
[426286786,1782246639000,-500.0,0.00014868,2]
[426286787,1782246639000,-500.0,0.00014868,2]
[426286788,1782246639000,-193981.6767134,0.00014869,2]
[426286789,1782246639000,-1585.55559143,0.00014873,2]
[426286792,1782246639000,-162.34907404,0.0001489,2]
[426286791,1782246639000,-1585.55559143,0.00014887,2]
[426286793,1782246639000,-180.44629639,0.0001489,2]
[426286790,1782246639000,-459.0654519,0.00014882,2]
[426286800,1782246639000,-500.0,0.0001489,2]
[426286797,1782246639000,-500.0,0.0001489,2]
[426286796,1782246639000,-500.0,0.0001489,2]
[426286798,1782246639000,-500.0,0.0001489,2]
[426286799,1782246639000,-500.0,0.0001489,2]
[426286805,1782246639000,-500.0,0.00014899,2]
[426286806,1782246639000,-500.0,0.00014899,2]
[426286803,1782246639000,-500.0,0.00014899,2]
[426286804,1782246639000,-500.0,0.00014899,2]
[426286801,1782246639000,-411212.0614873,0.00014891,2]
[426286802,1782246639000,-500.0,0.00014899,2]
[426286807,1782246639000,-500.0,0.00014899,2]
[426286782,1782246639000,-442.6122117,0.00014862,2]
[426286794,1782246639000,-357.8107871,0.0001489,2]
[426286780,1782246639000,-250.0,0.0001485,2]
[426286768,1782246639000,-384.5323314,0.000148,2]
[426286778,1782246639000,-1585.55559143,0.00014846,2]
[426286808,1782246639000,-500.0,0.00014899,2]
[426286757,1782246639000,-1145.52990344,0.00014602,2]
[426286754,1782246639000,-1048.7325835,0.00014602,2]
[426286756,1782246639000,-1023.25508593,0.00014602,2]
[426286753,1782246639000,-1036.72276814,0.00014602,2]
[426286755,1782246639000,-1033.78416999,0.00014602,2]
[426286758,1782246639000,-1085.05017914,0.00014602,2]
[426286760,1782246639000,-2500.0,0.00014769,2]
[426286759,1782246639000,-1434.48106662,0.00014602,2]
[426286762,1782246639000,-1585.55559149,0.00014779,2]
[426286761,1782246639000,-459.06545193,0.00014773,2]
[426286763,1782246639000,-33323.2708,0.00014791,2]
[426286764,1782246639000,-2000.0,0.00014791,2]
[426286769,1782246639000,-1585.55559143,0.00014806,2]
[426286770,1782246639000,-459.0654519,0.00014809,2]
[426286765,1782246639000,-459.0654519,0.00014791,2]
[426286771,1782246639000,-1585.55559143,0.00014819,2]
[426286767,1782246639000,-229.96422363,0.000148,2]
[426286772,1782246639000,-459.0654519,0.00014827,2]
[426286766,1782246639000,-1585.55559143,0.00014792,2]
[426286773,1782246639000,-1585.55559143,0.00014833,2]
[426286774,1782246639000,-500.0,0.00014838,2]
[426286775,1782246639000,-167.22,0.0001484,2]
[426286776,1782246639000,-459.0654519,0.00014846,2]
[426286777,1782246639000,-500.0,0.00014846,2]
[426286779,1782246639000,-384.5323314,0.0001485,2]
[426286809,1782246639000,-500.0,0.00014899,2]
[426286783,1782246639000,-459.0654519,0.00014864,2]
[426286811,1782246639000,-500.0,0.00014899,2]
[426286841,1782246639000,-500.0,0.00014999,2]
[426286865,1782246639000,-311.0,0.00015,2]
[426286842,1782246639000,-500.0,0.00014999,2]
[426286845,1782246639000,-500.0,0.00014999,2]
[426286844,1782246639000,-500.0,0.00014999,2]
[426286854,1782246639000,-500.0,0.00014999,2]
[426286852,1782246639000,-204.64,0.00014999,2]
[426286847,1782246639000,-500.0,0.00014999,2]
[426286850,1782246639000,-500.0,0.00014999,2]
[426286851,1782246639000,-500.0,0.00014999,2]
[426286855,1782246639000,-500.0,0.00014999,2]
[426286846,1782246639000,-441.07930829,0.00014999,2]
[426286848,1782246639000,-500.0,0.00014999,2]
[426286849,1782246639000,-500.0,0.00014999,2]
[426286853,1782246639000,-500.0,0.00014999,2]
[426286856,1782246639000,-500.0,0.00014999,2]
[426286863,1782246639000,-500.0,0.00014999,2]
[426286859,1782246639000,-500.0,0.00014999,2]
[426286860,1782246639000,-500.0,0.00014999,2]
[426286858,1782246639000,-500.0,0.00014999,2]
[426286857,1782246639000,-500.0,0.00014999,2]
[426286864,1782246639000,-500.0,0.00014999,2]
[426286866,1782246639000,-7679996.52746539,0.00015,2]
[426286862,1782246639000,-500.0,0.00014999,2]
[426286810,1782246639000,-1000.0,0.00014899,2]
[426286836,1782246639000,-151.0,0.00014997,2]
[426286839,1782246639000,-500.0,0.00014999,2]
[426286861,1782246639000,-500.0,0.00014999,2]
[426286837,1782246639000,-151.0,0.00014997,2]
[426286814,1782246639000,-500.0,0.00014899,2]
[426286816,1782246639000,-500.0,0.00014899,2]
[426286815,1782246639000,-500.0,0.00014899,2]
[426286812,1782246639000,-500.0,0.00014899,2]
[426286817,1782246639000,-500.0,0.00014899,2]
[426286813,1782246639000,-382.61617051,0.00014899,2]
[426286818,1782246639000,-500.0,0.00014899,2]
[426286838,1782246639000,-151.0,0.00014997,2]
[426286823,1782246639000,-384.5323314,0.000149,2]
[426286820,1782246639000,-179.38868994,0.000149,2]
[426286821,1782246639000,-5800.0,0.000149,2]
[426286830,1782246639000,-1002.47039857,0.0001497,2]
[426286825,1782246639000,-150.90789025,0.000149,2]
[426286822,1782246639000,-202.99918863,0.000149,2]
[426286826,1782246639000,-459.0654519,0.000149,2]
[426286843,1782246639000,-500.0,0.00014999,2]
[426286819,1782246639000,-500.0,0.00014899,2]
[426286832,1782246639000,-500.0,0.00014988,2]
[426286834,1782246639000,-162.34907404,0.0001499,2]
[426286833,1782246639000,-500.0,0.00014988,2]
[426286840,1782246639000,-500.0,0.00014999,2]
[426286831,1782246639000,-276.94,0.00014985,2]
[426286824,1782246639000,-1585.55559143,0.000149,2]
[426286829,1782246639000,-600.87526381,0.0001497,2]
[426286828,1782246639000,-151.0,0.0001495,2]
[426286827,1782246639000,-601.12082227,0.000149,2]
[426286835,1782246639000,-162.34907404,0.0001499,2]
[426286896,1782246640000,-150.0,0.00015221,2]
[426286916,1782246640000,-512.83074225,0.0001547,2]
[426286906,1782246640000,-200.0,0.00015301,2]
[426286901,1782246640000,-168.52,0.000153,2]
[426286893,1782246640000,-10199.18662003,0.000152,2]
[426286898,1782246640000,-150.0,0.00015221,2]
[426286897,1782246640000,-150.0,0.00015221,2]
[426286900,1782246640000,-512.83074225,0.00015268,2]
[426286895,1782246640000,-150.0,0.00015221,2]
[426286899,1782246640000,-150.0,0.00015221,2]
[426286905,1782246640000,-403.22,0.000153,14]
[426286919,1782246640000,-10199.18662003,0.000155,2]
[426286908,1782246640000,-6083.0,0.00015331,2]
[426286912,1782246640000,-512.83074225,0.00015438,2]
[426286910,1782246640000,-35694.0,0.000154,2]
[426286915,1782246640000,-200.0,0.00015455,2]
[426286911,1782246640000,-512.83074225,0.00015433,2]
[426286914,1782246640000,-200.0,0.00015455,2]
[426286913,1782246640000,-512.83074225,0.0001544,2]
[426286909,1782246640000,-3648.0,0.00015331,2]
[426286918,1782246640000,-1964.00388579,0.000155,2]
[426286917,1782246640000,-155.0,0.00015476,2]
[426286922,1782246640000,-275.37390927,0.000156,2]
[426286902,1782246640000,-1517.64,0.000153,2]
[426286907,1782246640000,-200.0,0.00015301,2]
[426286903,1782246640000,-1964.00388579,0.000153,2]
[426286881,1782246640000,-900.0,0.00015068,2]
[426286904,1782246640000,-10199.18662003,0.000153,2]
[426286921,1782246640000,-512.83074225,0.00015554,2]
[426286868,1782246640000,-2522.12913685,0.00015,14]
[426286878,1782246640000,-1000.0,0.00015,2]
[426286867,1782246640000,-2084.6527332,0.00015,2]
[426286872,1782246640000,-1964.00388579,0.00015,2]
[426286873,1782246640000,-10199.18662003,0.00015,2]
[426286870,1782246640000,-429.57054548,0.00015,2]
[426286869,1782246640000,-249322.52473732,0.00015,2]
[426286871,1782246640000,-352.4172831,0.00015,2]
[426286874,1782246640000,-200.0,0.00015,2]
[426286877,1782246640000,-453.48340523,0.00015,3]
[426286875,1782246640000,-1538.77,0.00015,2]
[426286876,1782246640000,-200.0,0.00015,2]
[426286879,1782246640000,-1203.33232509,0.00015019,2]
[426286888,1782246640000,-1350.0,0.00015131,7]
[426286884,1782246640000,-790.01,0.00015076,2]
[426286887,1782246640000,-1100.0,0.00015131,2]
[426286880,1782246640000,-150.0,0.00015068,2]
[426286889,1782246640000,-1500.0,0.00015133,2]
[426286885,1782246640000,-500.0,0.000151,3]
[426286892,1782246640000,-1964.00388579,0.000152,2]
[426286886,1782246640000,-2500.0,0.00015131,2]
[426286883,1782246640000,-250.0,0.00015068,2]
[426286890,1782246640000,-200.0,0.0001515,2]
[426286891,1782246640000,-200.0,0.0001515,2]
[426286894,1782246640000,-150.0,0.00015221,2]
[426286920,1782246640000,-512.83074225,0.00015539,2]
[426286923,1782246640000,-1964.00388579,0.000156,2]
[426286960,1782246640000,-500.0,0.00016011,3]
[426286948,1782246640000,-500.0,0.00015944,2]
[426286956,1782246640000,-500.0,0.00016011,3]
[426286955,1782246640000,-276.09039163,0.00016,2]
[426286964,1782246640000,-512.83074225,0.00016051,2]
[426286965,1782246640000,-512.83074225,0.00016069,2]
[426286958,1782246640000,-500.0,0.00016011,3]
[426286959,1782246640000,-453.48340522,0.00016011,3]
[426286970,1782246640000,-512.83074225,0.00016101,2]
[426286961,1782246640000,-500.0,0.00016011,3]
[426286963,1782246640000,-175.51773334,0.0001602,2]
[426286969,1782246640000,-276.09039163,0.000161,2]
[426286967,1782246640000,-1964.00388579,0.000161,2]
[426286968,1782246640000,-10199.18662003,0.000161,2]
[426286966,1782246640000,-275.37390927,0.000161,2]
[426286972,1782246640000,-275.37390927,0.000162,2]
[426286982,1782246640000,-900.0,0.00016218,2]
[426286971,1782246640000,-9999.99,0.00016116,2]
[426286973,1782246640000,-1964.00388579,0.000162,2]
[426286975,1782246640000,-10199.18662003,0.000162,2]
[426286976,1782246640000,-5529.0,0.000162,5]
[426286978,1782246640000,-500.0,0.00016218,2]
[426286980,1782246640000,-500.0,0.00016218,2]
[426286977,1782246640000,-500.0,0.00016218,2]
[426286979,1782246640000,-500.0,0.00016218,2]
[426286925,1782246640000,-200.0,0.00015609,2]
[426286953,1782246640000,-300.0,0.00016,2]
[426286950,1782246640000,-1361.0,0.00015945,2]
[426286962,1782246640000,-360.45021567,0.00016011,3]
[426286951,1782246640000,-383.0,0.00015945,2]
[426286924,1782246640000,-10199.18662003,0.000156,2]
[426286933,1782246640000,-1964.00388579,0.000158,2]
[426286927,1782246640000,-512.83074225,0.0001565,2]
[426286926,1782246640000,-198.87217539,0.00015609,2]
[426286929,1782246640000,-512.83074225,0.00015721,2]
[426286928,1782246640000,-1555.5,0.00015681,2]
[426286931,1782246640000,-512.83074225,0.00015762,2]
[426286932,1782246640000,-275.37390927,0.000158,2]
[426286954,1782246640000,-161.80998669,0.00016,2]
[426286934,1782246640000,-10199.18662003,0.000158,2]
[426286935,1782246640000,-5529.0,0.000158,3]
[426286939,1782246640000,-2000.0,0.00015839,2]
[426286936,1782246640000,-512.83074225,0.00015806,2]
[426286945,1782246640000,-512.83074225,0.00015926,2]
[426286930,1782246640000,-512.83074225,0.00015742,2]
[426286952,1782246640000,-1229.0,0.00015945,2]
[426286944,1782246640000,-1765.61,0.000159,2]
[426286937,1782246640000,-2279.53873597,0.00015807,2]
[426286940,1782246640000,-512.83074225,0.00015897,2]
[426286938,1782246640000,-500.0,0.00015839,2]
[426286943,1782246640000,-10199.18662003,0.000159,2]
[426286942,1782246640000,-1964.00388579,0.000159,2]
[426286947,1782246640000,-500.0,0.00015944,2]
[426286946,1782246640000,-512.83074225,0.0001593,2]
[426286957,1782246640000,-500.0,0.00016011,3]
[426286949,1782246640000,-899.43,0.00015944,2]
[426286941,1782246640000,-275.37390927,0.000159,2]
[426287026,1782246641000,-1115.1,0.00016932,2]
[426287029,1782246641000,-10199.18662003,0.000172,2]
[426287028,1782246641000,-10199.18662003,0.000171,2]
[426287027,1782246641000,-224.16,0.00016983,2]
[426287024,1782246641000,-1079.37,0.00016931,2]
[426287015,1782246641000,-10199.18662003,0.000167,2]
[426287025,1782246641000,-1243.14,0.00016931,2]
[426287021,1782246641000,-10199.18662003,0.000169,2]
[426287022,1782246641000,-622.98,0.00016931,2]
[426287020,1782246641000,-2586.0,0.00016884,5]
[426287030,1782246641000,-500.0,0.0001725,2]
[426287023,1782246641000,-559.22,0.00016931,2]
[426287031,1782246641000,-460.0,0.0001726,2]
[426287045,1782246641000,-795.76460638,0.000177,2]
[426287034,1782246641000,-1127.0,0.00017338,2]
[426287035,1782246641000,-10199.18662003,0.000174,2]
[426287032,1782246641000,-183.0,0.0001729,2]
[426287037,1782246641000,-541.93,0.00017424,2]
[426287036,1782246641000,-603.71,0.00017424,2]
[426287047,1782246641000,-10199.18662003,0.000178,2]
[426287038,1782246641000,-1045.99,0.00017424,2]
[426287039,1782246641000,-1204.7,0.00017424,2]
[426287044,1782246641000,-1538.77,0.000176,2]
[426287043,1782246641000,-10199.18662003,0.000176,2]
[426287041,1782246641000,-156.94882961,0.00017476,2]
[426287019,1782246641000,-201.0,0.000168,3]
[426287033,1782246641000,-1734.62772924,0.00017325,2]
[426287018,1782246641000,-1672.7364795,0.00016777,2]
[426286983,1782246641000,-1613.0535,0.00016229,2]
[426287016,1782246641000,-172.08,0.00016712,2]
[426286984,1782246641000,-500.0,0.00016259,2]
[426286987,1782246641000,-500.0,0.00016329,2]
[426286986,1782246641000,-1538.77,0.000163,2]
[426286985,1782246641000,-183.0,0.0001629,2]
[426286990,1782246641000,-10199.18662003,0.000164,2]
[426286993,1782246641000,-642.25,0.00016438,2]
[426286988,1782246641000,-790.01,0.00016331,2]
[426286991,1782246641000,-155.100243,0.00016435,2]
[426286989,1782246641000,-1964.00388579,0.000164,2]
[426286992,1782246641000,-960.5,0.00016438,2]
[426286996,1782246641000,-1112.75,0.00016438,2]
[426286994,1782246641000,-576.52,0.00016438,2]
[426287017,1782246641000,-500.0,0.00016747,2]
[426287011,1782246641000,-1000.0,0.000165,2]
[426287013,1782246641000,-151.0,0.00016669,2]
[426287003,1782246641000,-178.27,0.00016438,2]
[426287000,1782246641000,-1281.59,0.00016438,2]
[426287002,1782246641000,-1149.59,0.00016438,2]
[426287004,1782246641000,-460.0,0.00016438,2]
[426287008,1782246641000,-155.0,0.00016476,2]
[426287007,1782246641000,-1127.0,0.00016471,2]
[426287006,1782246641000,-250.0,0.00016438,4]
[426287005,1782246641000,-900.0,0.00016438,2]
[426287010,1782246641000,-500.0,0.00016492,2]
[426287009,1782246641000,-500.0,0.00016492,2]
[426287014,1782246641000,-291.5050583,0.00016669,2]